fUST/lending_fUST_20241223
["ID","MTS","AMOUNT","RATE_DAILY","PERIOD"]
[346370355,1734917156382,-254.14968914,0.00013698,2]
[346370356,1734917156402,-500.0,0.00013698,2]
[346370357,1734917156424,-500.0,0.00013698,2]
[346370358,1734917156446,-500.0,0.00013698,2]
[346370359,1734917156468,-581.06,0.00013698,2]
[346370360,1734917156489,-34959.55,0.00013698,2]
[346370361,1734917156511,-500.0,0.00013698,2]
[346370362,1734917156533,-397.32356141,0.00013698,2]
[346370363,1734917156555,-923.05,0.00013698,2]
[346370364,1734917156576,-500.0,0.00013698,2]
[346370365,1734917156597,-500.0,0.00013698,2]
[346370366,1734917156619,-1306.87,0.00013698,2]
[346370367,1734917156641,-500.0,0.00013698,2]
[346370368,1734917156663,-500.0,0.00013698,2]
[346370369,1734917156684,-500.0,0.00013698,2]
[346370370,1734917156705,-500.0,0.00013698,2]
[346370371,1734917156726,-404.01019005,0.00013698,2]
[346370372,1734917156747,-500.0,0.00013698,2]
[346370373,1734917156768,-500.0,0.00013698,2]
[346370374,1734917156791,-372.28437588,0.00013698,2]
[346370375,1734917156812,-500.0,0.00013698,2]
[346370376,1734917156834,-500.0,0.00013698,2]
[346370377,1734917156855,-500.0,0.00013698,2]
[346370378,1734917156876,-500.0,0.00013698,2]
[346370379,1734917156899,-500.0,0.00013698,2]
[346370380,1734917156920,-500.0,0.00013698,2]
[346370381,1734917156941,-991.24,0.00013698,2]
[346370382,1734917156963,-500.0,0.00013698,2]
[346370383,1734917156985,-500.0,0.00013698,2]
[346370384,1734917157007,-946.93,0.00013698,2]
[346370385,1734917157032,-500.0,0.00013698,2]
[346370386,1734917157056,-500.0,0.00013698,2]
[346370387,1734917157078,-500.0,0.00013698,2]
[346370388,1734917157102,-500.0,0.00013698,2]
[346370389,1734917157124,-1634.64,0.00013698,2]
[346370390,1734917157149,-500.0,0.00013698,2]
[346370391,1734917157171,-7163.8,0.00013698,2]
[346370392,1734917157192,-500.0,0.00013698,2]
[346370393,1734917157215,-500.0,0.00013698,2]
[346370394,1734917157237,-500.0,0.00013698,2]
[346370395,1734917157258,-500.0,0.00013698,2]
[346370396,1734917157283,-1007.17,0.00013698,2]
[346370397,1734917157303,-500.0,0.00013698,2]
[346370398,1734917157325,-492.34168865,0.00013698,2]
[346370402,1734917233099,-1914.3166535,0.00013557,2]
[346370449,1734917432507,-250.0,0.00012513,2]
[346370451,1734917432516,-330.26871588,0.00012548,2]
[346370453,1734917432525,-330.26871588,0.00012675,2]
[346370455,1734917432534,-300.0,0.00012802,2]
[346370457,1734917432543,-626.33337628,0.00012803,2]
[346370459,1734917432555,-8771.49548652,0.00012803,2]
[346370461,1734917432563,-8202.06581598,0.00013329,2]
[346370958,1734917438247,-5000.0,0.00013329,2]
[346370973,1734917438419,-1559.95104959,0.00013329,2]
[346370975,1734917438439,-324.22683165,0.00013329,2]
[346371196,1734917446776,-3485.90169412,0.00013196,2]
[346371200,1734917446976,-4101.13176794,0.00013329,2]
[346371201,1734917446987,-927.89805687,0.00013597,2]
[346371202,1734917446997,-500.0,0.00013697,2]
[346371203,1734917447007,-186.90437891,0.00013697,2]
[346371204,1734917447023,-500.0,0.00013697,2]
[346371206,1734917447033,-500.0,0.00013697,2]
[346371207,1734917447043,-500.0,0.00013697,2]
[346371209,1734917447053,-240.46978764,0.00013697,2]
[346371210,1734917447063,-454.54840778,0.00013697,2]
[346371212,1734917447073,-169.42603482,0.00013697,2]
[346371214,1734917447084,-7.65831135,0.00013698,2]
[346371215,1734917447095,-413.18747862,0.00013698,2]
[346371216,1734917447105,-500.0,0.00013698,2]
[346371217,1734917447116,-500.0,0.00013698,2]
[346371218,1734917447127,-500.0,0.00013698,2]
[346371219,1734917447137,-500.0,0.00013698,2]
[346371220,1734917447148,-500.0,0.00013698,2]
[346371221,1734917447157,-500.0,0.00013698,2]
[346371222,1734917447167,-500.0,0.00013698,2]
[346371223,1734917447178,-500.0,0.00013698,2]
[346371224,1734917447188,-500.0,0.00013698,2]
[346371225,1734917447198,-500.0,0.00013698,2]
[346371226,1734917447208,-500.0,0.00013698,2]
[346371227,1734917447218,-351.59408196,0.00013698,2]
[346371232,1734918387776,15115.75594399,0.0002,60]
[346371233,1734918502912,40000.0,0.00022,120]
[346371241,1734918632663,-1649.62868842,0.00011063,2]
[346371242,1734918632672,-1649.62868842,0.00011175,2]
[346371243,1734918632682,-1476.7519479,0.00011651,2]
[346371244,1734918632691,-2337.0551913,0.0001199,2]
[346371245,1734918632703,-2313.1310386,0.0001226,2]
[346371247,1734918632713,-300.0,0.00012725,2]
[346371249,1734918632724,-300.0,0.00012726,2]
[346371251,1734918632734,-24900.0,0.00012727,2]
[346371253,1734918632743,-813.6281115,0.000129,2]
[346371255,1734918632753,-153.0412529,0.00013,2]
[346371257,1734918632763,-580.488,0.0001302,2]
[346371259,1734918632773,-594.64797158,0.0001302,2]
[346371318,1734918638653,-1409.20200249,0.00010952,2]
[346371320,1734918638663,-163.86802842,0.0001302,2]
[346371322,1734918638672,-153.3554759,0.00013178,2]
[346371324,1734918638682,-960.57932609,0.00013537,2]
[346371326,1734918638694,-724.50210689,0.00013537,2]
[346371328,1734918638708,-8886.28442015,0.00013537,2]
[346371330,1734918638717,-198.8692799,0.00013591,2]
[346371332,1734918638726,-426.049218,0.00013671,2]
[346371334,1734918638735,-306.0,0.00013671,2]
[346371336,1734918638745,-500.0,0.00013673,2]
[346371338,1734918638755,-266.03816014,0.00013673,2]
[346371340,1734918638767,-151.0,0.00013692,2]
[346371342,1734918638778,-151.0,0.00013693,2]
[346371344,1734918638788,-249.93610904,0.00013693,2]
[346371346,1734918638800,-73.15193696,0.00013693,2]
[346371348,1734918638811,-323.088046,0.00013693,2]
[346371350,1734918638821,-151.0,0.00013693,2]
[346371352,1734918638830,-151.0,0.00013693,2]
[346371354,1734918638841,-151.0,0.00013693,2]
[346371356,1734918638850,-151.0,0.00013693,2]
[346371358,1734918638859,-151.0,0.00013693,2]
[346371360,1734918638868,-151.0,0.00013694,2]
[346371362,1734918638878,-151.0,0.00013694,2]
[346371364,1734918638887,-219.87696,0.00013694,2]
[346371366,1734918638897,-219.87696,0.00013694,2]
[346371368,1734918638907,-151.0,0.00013694,2]
[346371370,1734918638916,-151.0,0.00013694,2]
[346371372,1734918638926,-202.068404,0.00013694,2]
[346371374,1734918638934,-202.068404,0.00013694,2]
[346371376,1734918638944,-151.0,0.00013695,2]
[346371378,1734918638957,-151.0,0.00013695,2]
[346371380,1734918638966,-234.48032,0.00013695,2]
[346371382,1734918638975,-234.48032,0.00013695,2]
[346371384,1734918638985,-328.947513,0.00013696,2]
[346371386,1734918638994,-328.947513,0.00013696,2]
[346371388,1734918639004,-157.994271,0.00013696,2]
[346371390,1734918639013,-157.994271,0.00013696,2]
[346371392,1734918639023,-189.06062843,0.00013697,2]
[346371394,1734918639032,-158.335108,0.00013698,2]
[346371396,1734918639042,-281.318235,0.00013698,2]
[346371398,1734918639052,-504.45395703,0.00013698,2]
[346371400,1734918639061,-151.0,0.00013698,2]
[346371402,1734918639071,-151.0,0.00013698,2]
[346371404,1734918639082,-151.0,0.00013698,2]
[346371406,1734918639091,-155.116307,0.00013698,2]
[346371408,1734918639101,-607.15800776,0.00013698,2]
[346371410,1734918639111,-500.0,0.00013698,2]
[346371412,1734918639121,-151.0,0.00013698,2]
[346371414,1734918639130,-151.0,0.00013698,2]
[346371416,1734918639139,-151.0,0.00013698,2]
[346371418,1734918639149,-151.0,0.00013698,2]
[346371420,1734918639158,-151.0,0.00013698,2]
[346371422,1734918639168,-151.0,0.00013698,2]
[346371424,1734918639177,-151.0,0.00013698,2]
[346371426,1734918639187,-501.8525183,0.00013698,2]
[346371428,1734918639196,-501.67284601,0.00013698,2]
[346371430,1734918639208,-502.70761326,0.00013698,2]
[346371432,1734918639217,-502.27886704,0.00013698,2]
[346371434,1734918639226,-502.66898619,0.00013698,2]
[346371436,1734918639236,-401.85787574,0.00013698,2]
[346371438,1734918639249,-98.14212426,0.00013698,2]
[346371440,1734918639258,-504.98472928,0.00013698,2]
[346371442,1734918639267,-504.96753848,0.00013698,2]
[346371444,1734918639276,-501.36386864,0.00013698,2]
[346371446,1734918639286,-26.18394589,0.00013698,2]
[346371449,1734918639298,-475.63827954,0.00013698,2]
[346371451,1734918639307,-38.03086911,0.00013698,2]
[346371453,1734918639319,-461.96913089,0.00013698,2]
[346371455,1734918639329,-515.58473739,0.00013698,2]
[346371457,1734918639338,-502.17880438,0.00013698,2]
[346371459,1734918639347,-501.61759569,0.00013698,2]
[346371461,1734918639356,-503.03281979,0.00013698,2]
[346371463,1734918639365,-151.0,0.00013698,2]
[346371465,1734918639374,-151.0,0.00013698,2]
[346371467,1734918639384,-151.0,0.00013698,2]
[346371469,1734918639393,-151.0,0.00013698,2]
[346371471,1734918639403,-501.51544411,0.00013698,2]
[346371473,1734918639412,-501.69516501,0.00013698,2]
[346371475,1734918639422,-503.4567327,0.00013698,2]
[346371477,1734918639431,-503.58598161,0.00013698,2]
[346371479,1734918639440,-244.45661511,0.00013698,2]
[346371481,1734918639449,-503.23576341,0.00013698,2]
[346371483,1734918639461,-500.75707248,0.00013698,2]
[346371485,1734918639471,-502.22281404,0.00013698,2]
[346371487,1734918639480,-500.91962012,0.00013698,2]
[346371489,1734918639489,-501.52137829,0.00013698,2]
[346371491,1734918639499,-500.56508789,0.00013698,2]
[346371493,1734918639508,-500.66423861,0.00013698,2]
[346371495,1734918639517,-502.68759783,0.00013698,2]
[346371497,1734918639527,-506.30294244,0.00013698,2]
[346371499,1734918639537,-501.98292456,0.00013698,2]
[346371501,1734918639547,-504.64649185,0.00013698,2]
[346371503,1734918639556,-204.80017018,0.00013698,2]
[346371505,1734918639566,-504.49341324,0.00013698,2]
[346371507,1734918639575,-501.80377471,0.00013698,2]
[346371509,1734918639586,-503.08055248,0.00013698,2]
[346371511,1734918639596,-502.15269419,0.00013698,2]
[346371513,1734918639607,-502.06843482,0.00013698,2]
[346371515,1734918639617,-502.01414345,0.00013698,2]
[346371517,1734918639627,-503.88022161,0.00013698,2]
[346371519,1734918639636,-500.0,0.00013698,2]
[346371521,1734918639646,-502.64758897,0.00013698,2]
[346371523,1734918639655,-537.64753135,0.00013698,2]
[346371525,1734918639664,-504.52029907,0.00013698,2]
[346371527,1734918639674,-502.35820686,0.00013698,2]
[346371529,1734918639683,-502.37532783,0.00013698,2]
[346371531,1734918639693,-234.78459135,0.00013698,2]
[346371533,1734918639705,-729.946864,0.00013698,2]
[346371535,1734918639714,-729.946864,0.00013698,2]
[346371537,1734918639723,-729.946864,0.00013698,2]
[346371539,1734918639733,-729.946864,0.00013698,2]
[346371541,1734918639742,-503.18199395,0.00013698,2]
[346371543,1734918639751,-502.28505145,0.00013698,2]
[346371545,1734918639761,-227.14177624,0.00013698,2]
[346371547,1734918639773,-500.0,0.00013698,2]
[346371549,1734918639783,-465.78081698,0.00013698,2]
[346371551,1734918639792,-500.0,0.00013698,2]
[346371553,1734918639802,-500.0,0.00013698,2]
[346371555,1734918639812,-500.0,0.00013698,2]
[346371557,1734918639821,-500.0,0.00013698,2]
[346371559,1734918639831,-500.0,0.00013698,2]
[346371561,1734918639840,-500.0,0.00013698,2]
[346371563,1734918639850,-2652.309645,0.00013698,2]
[346371565,1734918639859,-2373.22446052,0.00013698,2]
[346371568,1734918639885,-279.08518448,0.00013698,2]
[346371570,1734918639895,-2652.309645,0.00013698,2]
[346371572,1734918639905,-2652.309645,0.00013698,2]
[346371574,1734918639914,-2652.309645,0.00013698,2]
[346371576,1734918639924,-2652.309645,0.00013698,2]
[346371578,1734918639933,-2652.309645,0.00013698,2]
[346371580,1734918639942,-2652.309645,0.00013698,2]
[346371583,1734918639954,-2652.309645,0.00013698,2]
[346371585,1734918639963,-2652.309645,0.00013698,2]
[346371587,1734918639972,-2652.309645,0.00013698,2]
[346371588,1734918639981,-2652.309645,0.00013698,2]
[346371590,1734918639991,-2652.309645,0.00013698,2]
[346371592,1734918640002,-233.059526,0.00013698,2]
[346371594,1734918640012,-2652.309645,0.00013698,2]
[346371596,1734918640021,-2652.309645,0.00013698,2]
[346371597,1734918640030,-2652.309645,0.00013698,2]
[346371598,1734918640039,-2652.309645,0.00013698,2]
[346371599,1734918640048,-2652.309645,0.00013698,2]
[346371600,1734918640057,-2652.309645,0.00013698,2]
[346371601,1734918640066,-2652.309649,0.00013698,2]
[346371602,1734918640075,-764.62,0.00013698,2]
[346371603,1734918640084,-500.0,0.00013698,2]
[346371606,1734918640094,-151.0,0.00013698,2]
[346371609,1734918640103,-151.0,0.00013698,2]
[346371612,1734918640112,-151.0,0.00013698,2]
[346371614,1734918640120,-151.0,0.00013698,2]
[346371616,1734918640130,-151.0,0.00013698,2]
[346371617,1734918640139,-251.224841,0.00013698,2]
[346371618,1734918640148,-500.0,0.00013698,2]
[346371619,1734918640158,-500.0,0.00013698,2]
[346371620,1734918640168,-500.0,0.00013698,2]
[346371621,1734918640177,-500.0,0.00013698,2]
[346371622,1734918640187,-500.0,0.00013698,2]
[346371623,1734918640197,-500.0,0.00013698,2]
[346371624,1734918640207,-500.0,0.00013698,2]
[346371625,1734918640216,-533.11581718,0.00013698,2]
[346371627,1734918640225,-500.0,0.00013698,2]
[346371629,1734918640234,-500.0,0.00013698,2]
[346371631,1734918640244,-500.0,0.00013698,2]
[346371633,1734918640253,-500.0,0.00013698,2]
[346371635,1734918640262,-500.0,0.00013698,2]
[346371637,1734918640272,-500.0,0.00013698,2]
[346371639,1734918640281,-500.0,0.00013698,2]
[346371641,1734918640291,-500.0,0.00013698,2]
[346371643,1734918640302,-641.6448037,0.00013698,2]
[346371645,1734918640312,-151.0,0.00013698,2]
[346371647,1734918640321,-151.0,0.00013698,2]
[346371649,1734918640331,-151.0,0.00013698,2]
[346371651,1734918640340,-151.0,0.00013698,2]
[346371653,1734918640350,-500.0,0.00013698,2]
[346371655,1734918640359,-151.0,0.00013698,2]
[346371657,1734918640369,-151.0,0.00013698,2]
[346371659,1734918640378,-500.0,0.00013698,2]
[346371661,1734918640388,-151.0,0.00013698,2]
[346371663,1734918640397,-151.0,0.00013698,2]
[346371665,1734918640407,-151.0,0.00013698,2]
[346371667,1734918640416,-151.0,0.00013698,2]
[346371669,1734918640425,-296.524498,0.00013698,2]
[346371671,1734918640435,-500.0,0.00013698,2]
[346371673,1734918640445,-500.0,0.00013698,2]
[346371675,1734918640456,-500.0,0.00013698,2]
[346371677,1734918640466,-248.8334142,0.00013698,2]
[346371679,1734918640475,-500.0,0.00013698,2]
[346371681,1734918640484,-500.0,0.00013698,2]
[346371682,1734918640493,-884.59,0.00013698,2]
[346371685,1734918640503,-1252.7,0.00013698,2]
[346371687,1734918640513,-328.947513,0.00013698,2]
[346371689,1734918640522,-328.947513,0.00013698,2]
[346371691,1734918640531,-328.947513,0.00013698,2]
[346371692,1734918640541,-328.947513,0.00013698,2]
[346371695,1734918640551,-328.947513,0.00013698,2]
[346371697,1734918640560,-328.947513,0.00013698,2]
[346371698,1734918640571,-500.0,0.00013698,2]
[346371701,1734918640581,-328.947513,0.00013698,2]
[346371703,1734918640591,-328.947513,0.00013698,2]
[346371705,1734918640600,-500.0,0.00013698,2]
[346371707,1734918640612,-328.947513,0.00013698,2]
[346371709,1734918640621,-328.947513,0.00013698,2]
[346371711,1734918640631,-328.947513,0.00013698,2]
[346371713,1734918640640,-328.947513,0.00013698,2]
[346371715,1734918640649,-328.947513,0.00013698,2]
[346371717,1734918640659,-328.947513,0.00013698,2]
[346371719,1734918640667,-328.947513,0.00013698,2]
[346371721,1734918640677,-328.947513,0.00013698,2]
[346371723,1734918640686,-328.947513,0.00013698,2]
[346371724,1734918640696,-328.947519,0.00013698,2]
[346371727,1734918640710,-500.0,0.00013698,2]
[346371729,1734918640720,-500.0,0.00013698,2]
[346371731,1734918640731,-151.0,0.00013698,2]
[346371733,1734918640740,-151.0,0.00013698,2]
[346371735,1734918640749,-151.0,0.00013698,2]
[346371737,1734918640758,-155.787717,0.00013698,2]
[346371739,1734918640772,-908.36,0.00013698,2]
[346371741,1734918640782,-500.0,0.00013698,2]
[346371743,1734918640792,-500.0,0.00013698,2]
[346371745,1734918640801,-500.0,0.00013698,2]
[346371747,1734918640811,-500.0,0.00013698,2]
[346371749,1734918640820,-500.0,0.00013698,2]
[346371751,1734918640829,-500.0,0.00013698,2]
[346371753,1734918640838,-500.0,0.00013698,2]
[346371755,1734918640848,-151.0,0.00013698,2]
[346371757,1734918640858,-500.0,0.00013698,2]
[346371759,1734918640867,-151.0,0.00013698,2]
[346371761,1734918640876,-151.0,0.00013698,2]
[346371763,1734918640885,-208.733484,0.00013698,2]
[346371765,1734918640895,-520.85756929,0.00013698,2]
[346371767,1734918640903,-500.0,0.00013698,2]
[346371769,1734918640913,-500.0,0.00013698,2]
[346371771,1734918640922,-500.0,0.00013698,2]
[346371773,1734918640931,-500.0,0.00013698,2]
[346371775,1734918640941,-500.0,0.00013698,2]
[346371777,1734918640950,-620.0,0.00013698,2]
[346371779,1734918640962,-500.0,0.00013698,2]
[346371781,1734918640971,-515.13,0.00013698,2]
[346371783,1734918640980,-500.0,0.00013698,2]
[346371785,1734918640989,-500.0,0.00013698,2]
[346371805,1734918641150,-523.9427116,0.00013698,2]
[346371807,1734918641160,-500.0,0.00013698,2]
[346371809,1734918641169,-500.0,0.00013698,2]
[346371811,1734918641178,-151.0,0.00013698,2]
[346371813,1734918641187,-500.0,0.00013698,2]
[346371815,1734918641196,-151.0,0.00013698,2]
[346371816,1734918641206,-151.0,0.00013698,2]
[346371819,1734918641215,-500.0,0.00013698,2]
[346371820,1734918641225,-151.0,0.00013698,2]
[346371823,1734918641234,-500.0,0.00013698,2]
[346371825,1734918641243,-151.0,0.00013698,2]
[346371827,1734918641253,-500.0,0.00013698,2]
[346371829,1734918641262,-151.0,0.00013698,2]
[346371831,1734918641271,-151.0,0.00013698,2]
[346371832,1734918641281,-151.0,0.00013698,2]
[346371835,1734918641291,-151.0,0.00013698,2]
[346371837,1734918641301,-151.0,0.00013698,2]
[346371839,1734918641310,-301.118115,0.00013698,2]
[346371841,1734918641320,-500.0,0.00013698,2]
[346371843,1734918641329,-652.2,0.00013698,2]
[346371845,1734918641338,-234.48032,0.00013698,2]
[346371847,1734918641347,-234.48032,0.00013698,2]
[346371849,1734918641356,-500.0,0.00013698,2]
[346371851,1734918641365,-234.48032,0.00013698,2]
[346371853,1734918641374,-234.48032,0.00013698,2]
[346371855,1734918641384,-234.48032,0.00013698,2]
[346371857,1734918641393,-234.48032,0.00013698,2]
[346371858,1734918641402,-234.48032,0.00013698,2]
[346371861,1734918641412,-234.48032,0.00013698,2]
[346371863,1734918641421,-234.48032,0.00013698,2]
[346371865,1734918641431,-234.48032,0.00013698,2]
[346371867,1734918641440,-234.48032,0.00013698,2]
[346371868,1734918641449,-234.48032,0.00013698,2]
[346371870,1734918641462,-162.6198909,0.00013698,2]
[346371872,1734918641471,-500.0,0.00013698,2]
[346371874,1734918641481,-234.48032,0.00013698,2]
[346371876,1734918641492,-234.48032,0.00013698,2]
[346371879,1734918641501,-234.48032,0.00013698,2]
[346371881,1734918641511,-234.48032,0.00013698,2]
[346371883,1734918641521,-234.48032,0.00013698,2]
[346371885,1734918641531,-234.480329,0.00013698,2]
[346371887,1734918641540,-157.994271,0.00013698,2]
[346371888,1734918641549,-157.994271,0.00013698,2]
[346371890,1734918641559,-157.994271,0.00013698,2]
[346371892,1734918641568,-157.994271,0.00013698,2]
[346371895,1734918641578,-157.994271,0.00013698,2]
[346371897,1734918641587,-157.994271,0.00013698,2]
[346371899,1734918641597,-157.994271,0.00013698,2]
[346371901,1734918641605,-157.994271,0.00013698,2]
[346371903,1734918641616,-354.93407292,0.00013698,2]
[346371905,1734918641626,-157.994271,0.00013698,2]
[346371907,1734918641635,-500.0,0.00013698,2]
[346371909,1734918641644,-157.994271,0.00013698,2]
[346371911,1734918641653,-157.994271,0.00013698,2]
[346371913,1734918641663,-157.994271,0.00013698,2]
[346371915,1734918641672,-157.994271,0.00013698,2]
[346371917,1734918641680,-157.994271,0.00013698,2]
[346371918,1734918641690,-151.0,0.00013698,2]
[346371921,1734918641699,-151.0,0.00013698,2]
[346371923,1734918641712,-157.994271,0.00013698,2]
[346371925,1734918641722,-151.0,0.00013698,2]
[346371927,1734918641732,-157.994271,0.00013698,2]
[346371928,1734918641741,-151.0,0.00013698,2]
[346371930,1734918641751,-157.994271,0.00013698,2]
[346371932,1734918641759,-151.0,0.00013698,2]
[346371934,1734918641770,-157.994263,0.00013698,2]
[346371936,1734918641781,-500.0,0.00013698,2]
[346371938,1734918641790,-151.0,0.00013698,2]
[346371941,1734918641800,-151.0,0.00013698,2]
[346371942,1734918641809,-151.0,0.00013698,2]
[346371944,1734918641818,-151.0,0.00013698,2]
[346371946,1734918641827,-151.0,0.00013698,2]
[346371948,1734918641835,-151.0,0.00013698,2]
[346371950,1734918641845,-151.0,0.00013698,2]
[346371952,1734918641854,-209.080838,0.00013698,2]
[346371955,1734918641864,-500.66164835,0.00013698,2]
[346371957,1734918641874,-500.0,0.00013698,2]
[346371959,1734918641883,-500.0,0.00013698,2]
[346371961,1734918641893,-500.0,0.00013698,2]
[346371963,1734918641902,-500.0,0.00013698,2]
[346371965,1734918641912,-500.0,0.00013698,2]
[346371967,1734918641921,-500.0,0.00013698,2]
[346371969,1734918641931,-500.0,0.00013698,2]
[346371971,1734918641940,-500.0,0.00013698,2]
[346371973,1734918641949,-500.0,0.00013698,2]
[346371975,1734918641963,-500.0,0.00013698,2]
[346371977,1734918641973,-502.39485658,0.00013698,2]
[346371978,1734918641983,-501.45076778,0.00013698,2]
[346371981,1734918641992,-502.62726849,0.00013698,2]
[346371982,1734918642003,-219.87696,0.00013698,2]
[346371984,1734918642012,-219.87696,0.00013698,2]
[346371986,1734918642022,-219.87696,0.00013698,2]
[346371989,1734918642032,-219.87696,0.00013698,2]
[346371991,1734918642041,-219.87696,0.00013698,2]
[346371993,1734918642050,-219.87696,0.00013698,2]
[346371995,1734918642060,-219.87696,0.00013698,2]
[346371997,1734918642069,-500.0,0.00013698,2]
[346371999,1734918642078,-219.87696,0.00013698,2]
[346372001,1734918642088,-219.87696,0.00013698,2]
[346372003,1734918642097,-219.87696,0.00013698,2]
[346372005,1734918642107,-219.87696,0.00013698,2]
[346372007,1734918642116,-219.87696,0.00013698,2]
[346372009,1734918642126,-502.31477235,0.00013698,2]
[346372011,1734918642135,-219.87696,0.00013698,2]
[346372013,1734918642144,-219.87696,0.00013698,2]
[346372015,1734918642153,-219.87696,0.00013698,2]
[346372017,1734918642163,-219.87696,0.00013698,2]
[346372019,1734918642172,-219.87696,0.00013698,2]
[346372021,1734918642181,-219.876967,0.00013698,2]
[346372023,1734918642191,-501.23999592,0.00013698,2]
[346372025,1734918642200,-500.0,0.00013698,2]
[346372027,1734918642213,-503.27054915,0.00013698,2]
[346372029,1734918642222,-622.481452,0.00013698,2]
[346372031,1734918642232,-500.0,0.00013698,2]
[346372033,1734918642241,-500.0,0.00013698,2]
[346372035,1734918642251,-500.0,0.00013698,2]
[346372037,1734918642260,-500.0,0.00013698,2]
[346372039,1734918642270,-500.0,0.00013698,2]
[346372041,1734918642279,-500.0,0.00013698,2]
[346372043,1734918642289,-500.0,0.00013698,2]
[346372045,1734918642300,-504.08032948,0.00013698,2]
[346372047,1734918642309,-500.0,0.00013698,2]
[346372049,1734918642319,-500.0,0.00013698,2]
[346372051,1734918642328,-500.0,0.00013698,2]
[346372053,1734918642338,-151.0,0.00013698,2]
[346372055,1734918642348,-151.0,0.00013698,2]
[346372057,1734918642358,-151.0,0.00013698,2]
[346372059,1734918642368,-151.0,0.00013698,2]
[346372061,1734918642378,-151.0,0.00013698,2]
[346372063,1734918642389,-151.0,0.00013698,2]
[346372065,1734918642399,-151.0,0.00013698,2]
[346372067,1734918642408,-151.0,0.00013698,2]
[346372069,1734918642418,-151.0,0.00013698,2]
[346372071,1734918642427,-500.0,0.00013698,2]
[346372073,1734918642436,-950.78,0.00013698,2]
[346372075,1734918642447,-151.0,0.00013698,2]
[346372077,1734918642457,-151.0,0.00013698,2]
[346372079,1734918642466,-151.0,0.00013698,2]
[346372081,1734918642476,-151.0,0.00013698,2]
[346372083,1734918642485,-151.0,0.00013698,2]
[346372085,1734918642496,-151.0,0.00013698,2]
[346372087,1734918642506,-500.0,0.00013698,2]
[346372089,1734918642515,-5247.46,0.00013698,2]
[346372091,1734918642524,-151.0,0.00013698,2]
[346372093,1734918642533,-155.629017,0.00013698,2]
[346372095,1734918642542,-504.36609451,0.00013698,2]
[346372097,1734918642551,-502.25695917,0.00013698,2]
[346372099,1734918642561,-1801.6,0.00013698,2]
[346372101,1734918642570,-500.0,0.00013698,2]
[346372103,1734918642579,-519.71072856,0.00013698,2]
[346372105,1734918642589,-500.94106025,0.00013698,2]
[346372107,1734918642599,-500.0,0.00013698,2]
[346372109,1734918642609,-500.0,0.00013698,2]
[346372111,1734918642618,-966.6,0.00013698,2]
[346372113,1734918642627,-500.0,0.00013698,2]
[346372115,1734918642636,-500.0,0.00013698,2]
[346372117,1734918642646,-500.0,0.00013698,2]
[346372119,1734918642656,-500.0,0.00013698,2]
[346372121,1734918642668,-500.0,0.00013698,2]
[346372123,1734918642677,-1051.24,0.00013698,2]
[346372125,1734918642687,-151.0,0.00013698,2]
[346372127,1734918642699,-151.0,0.00013698,2]
[346372129,1734918642712,-151.0,0.00013698,2]
[346372131,1734918642722,-151.0,0.00013698,2]
[346372133,1734918642731,-151.0,0.00013698,2]
[346372135,1734918642740,-151.0,0.00013698,2]